Cogmind - Beta 16.1 @@@ ROGUE MODE // 2026.03.24 @ 16:09:23 Player: Minty Result: Destroyed by D-53 Grenadier with Mini Grenade Launcher Performance ------------- Evolutions (0) 0 Regions Visited (2) 400 Robots Destroyed (11) 55 Value Destroyed (331) 331 Prototype IDs (1) 20 Alien Tech Used (0) 0 Bonus (0) 0 TOTAL SCORE: 806 Bonus ------- None Cogmind --------- Core Integrity 0/250 Matter 203/300 Energy 11/100 System Corruption 4% Temperature Cool (2) Movement Hovering (56) Location -10/Mines Parts ------- > --- POWER (1) -------- (None) > --- PROPULSION (2) --- Improved Hover Unit Improved Hover Unit > --- UTILITY (2) ------ Splice Drone Bay (0/6) > --- WEAPON (2) ------- EM Shotgun EM Shotgun > --- INVENTORY (5) ---- Heavy EM Pulse Gun Heavy EM Pulse Gun Heavy EM Pulse Gun Heavy EM Pulse Gun Peak State ------------ > --- POWER ------------ (None) > --- PROPULSION ------- Improved Hover Unit Improved Hover Unit > --- UTILITY ---------- Splice Drone Bay > --- WEAPON ----------- EM Shotgun EM Shotgun > --- INVENTORY -------- Heavy EM Pulse Gun Heavy EM Pulse Gun Heavy EM Pulse Gun Heavy EM Pulse Gun [Rating: 15] Favorites ----------- Power Light Ion Engine Engine Light Ion Engine Propulsion Improved Hover Unit Leg Aluminum Leg Hover Unit Improved Hover Unit Utility Small Storage Unit Device Improved Heat Sink Storage Small Storage Unit Weapon EM Shotgun Energy Gun EM Shotgun Launcher Grenade Launcher Build | -11 -10 -10 ------- Run | Yrd Mat Min Slots Evolved . | . . . Power . | . . . Propulsion . | . . . Utility . | . . . Weapon . | . . . Parts Attached 14 | . 10 4 Power 2 | . 2 . Engine 2 | . 2 . Core . | . . . Reactor . | . . . Propulsion 4 | . 2 2 Treads . | . . . Leg . | . . . Wheel . | . . . Hover 4 | . 2 2 Flight . | . . . Utility 2 | . 1 1 Device 2 | . 1 1 Storage . | . . . Processor . | . . . Hackware . | . . . Protection . | . . . Artifact . | . . . Weapon 6 | . 5 1 Energy Gun 5 | . 4 1 Energy Cannon . | . . . Ballistic Gun . | . . . Ballistic Cannon . | . . . Launcher 1 | . 1 . Special Weapon . | . . . Impact Weapon . | . . . Slashing Weapon . | . . . Piercing Weapon . | . . . Special Melee Weapon . | . . . Unidentified Prototypes 1 | . . 1 Corrupted Parts 1 | . 1 . System Corruption 4 | . 4 . Parts Lost 7 | . 1 6 Power 1 | . . 1 Propulsion 2 | . . 2 Utility 1 | . . 1 Weapon 3 | . 1 2 Highest Loss Streak 3 | . 1 3 To Critical Strikes . | . . . Average Backups 7 | 6 7 6 Power . | 1 . . Propulsion 2 | 4 3 1 Utility . | . 1 . Weapon 3 | 1 2 5 Tool/Special . | . . . Unused Backups 18 | . 13 5 Power 1 | . 1 . Propulsion 6 | . 6 . Utility 4 | . 3 1 Weapon 7 | . 3 4 Tool/Special . | . . . Average Slot Usage (%) 83 | . 95 69 Engine 10 | . 14 7 Leg 12 | . 22 . Hover 15 | . 5 28 Device 6 | . 10 1 Storage 13 | . 14 12 Energy Gun 21 | . 25 15 Launcher 2 | . 1 4 Peak Build Rating 15 | 6 14 15 Average Rating 9 | 6 9 9 On Entrance 7 | 6 6 11 Avg Prop Armor Cover (%) 9 | . 9 . Naked Turns . | . . . Heaviest Build 15 | 12 15 14 Greatest Support 20 | 20 20 14 Greatest Overweight (x) 1 | . 1 . Average Overweight (x) . | . . . Largest Inventory Capacity 8 | 8 8 8 Average Capacity 7 | 8 8 7 Most Carried 8 | 6 8 8 Average Carried 7 | 6 7 6 Final Capacity 8 | 8 8 5 Final Carried 8 | 6 8 4 Class Distribution -------------------- 100% | Mutant Dominant Class ---------------- Mutant | -10/Materials Mutant | -10/Mines Resources | -11 -10 -10 ----------- Run | Yrd Mat Min Matter Collected 427 | 200 147 80 Remotely . | . . . Salvage Created 456 | . 365 91 Parts 20 | . 16 4 Haulers Intercepted . | . . . Recyclers Shooed . | . . . Parts Field Recycled . | . . . Retrieved Matter . | . . . Parts Self-Destructed . | . . . Prevented . | . . . Parts Restored . | . . . Kills | -11 -10 -10 ------- Run | Yrd Mat Min Combat Hostiles Destroyed 28 | . 7 21 Guns 6 | . 5 1 AOE 22 | . 2 20 Classes Destroyed 6 | . 3 3 Worker 1 | . 1 . Tunneler 1 | . . 1 Recycler 1 | . 1 . Grunt 7 | . 7 . Demolisher 1 | . . 1 Assembled 20 | . . 20 Best Kill Streak 19 | . 3 19 Combat Bots Only 19 | . 2 19 Max Kills in Single Turn 4 | . 1 4 Gunslinging . | . . . Exploded 4 | . 1 4 Melee . | . . . Uniques/NPCs Destroyed . | . . . Combat | -11 -10 -10 -------- Run | Yrd Mat Min Hostile Shots Fired 74 | . 43 31 Missed 25 | . 10 15 Hits 49 | . 33 16 Melee 3 | . . 3 Projectile 46 | . 33 13 AOE 10 | . . 10 Damage Taken 973 | . 423 550 Core 259 | . 118 141 Absorbed by Shields . | . . . Core Remaining (%) 100 | 100 . . Volleys Fired 40 | . 23 17 Largest 2 | . 2 2 Hottest 115 | . 115 90 Shots Fired 67 | . 46 21 Gun 50 | . 42 8 Cannon . | . . . Launcher 17 | . 4 13 Special . | . . . Kinetic . | . . . Thermal 23 | . 23 . Explosive 17 | . 4 13 Electromagnetic 27 | . 19 8 Robot Hit Streak 10 | . 10 4 Robot Miss Streak 5 | . 3 5 Penetration Max . | . . . Secondary Targets 1 | . 1 . Max Gunslinging Chain 1 | . 1 . Shots Hit Robots 43 | . 34 9 Core Hits 66 | . 19 47 Critical Kills . | . . . Critical Parts Destroyed . | . . . Critical Strikes 2 | . 2 . Burn 2 | . 2 . Melee Attacks . | . . . Impact . | . . . Slashing . | . . . Piercing . | . . . Sneak Attacks . | . . . Combat Hostiles . | . . . Follow-up Attacks . | . . . Damage Inflicted 1880 | . 564 1316 Guns 481 | . 409 72 Cannons . | . . . Explosions 1399 | . 155 1244 Melee . | . . . Ramming . | . . . Kinetic . | . . . Thermal 230 | . 230 . Explosive 1399 | . 155 1244 Electromagnetic 251 | . 179 72 Impact . | . . . Slashing . | . . . Piercing . | . . . Highest Corruption 4 | . 4 4 Average Corruption 4 | . 4 4 Corruption Purged . | . . . Corruption Blocked . | . . . Effects 8 | . 6 2 Message Errors 4 | . 2 2 Matter Fused 2 | . 2 . Heat Flow Errors 1 | . 1 . Data Loss (major) 1 | . 1 . Overload Shots . | . . . Overflow Damage 40 | . . 40 Projectiles . | . . . Explosions 40 | . . 40 Melee . | . . . Knockbacks . | . . . Impact . | . . . Kinetic . | . . . Secondary . | . . . Self-Inflicted Damage 91 | . 11 80 Shots 4 | . 1 3 Rammed . | . . . Targets Rammed . | . . . Kicked . | . . . Crushed . | . . . Highest Temperature 261 | . 261 44 Average Temperature 73 | . 93 21 Received Heat Transfer 231 | . 231 . Siege Activations . | . . . Martial Activations . | . . . Shielding Activations . | . . . Robots Disrupted . | . . . Combat Hostiles . | . . . Robots Corrupted . | . . . Combat Hostiles . | . . . Parts Fried . | . . . Impact Corruptions . | . . . Robots Melted . | . . . Combat Hostiles . | . . . Parts Melted . | . . . Heat Transferred 814 | . 814 . Parts Sabotaged . | . . . Parts Stolen . | . . . Parts Stripped . | . . . Power Chain Reactions . | . . . Alert | -11 -10 -10 ------- Run | Yrd Mat Min Maximum Alert Level . | . . . Low Security (%) 100 | 100 100 100 Level 1 . | . . . Level 2 . | . . . Level 3 . | . . . Level 4 . | . . . Level 5 . | . . . High Security . | . . . Max Security . | . . . Peak Influence 95 | . 95 46 Initial 33 | . . 33 Average 32 | . 46 17 Influence Increases 328 | . 205 123 Destroy 0b10 Robot/C 160 | . 140 20 Destroy 0b10 Robot/NC 15 | . 10 5 Destroy Leader 30 | . 30 . Successful Hack 7 | . 7 . Destroy Structure 71 | . 18 53 Partial Spotted 15 | . . 15 Lose Combat Pursuer 30 | . . 30 Influence Decreases 318 | . 120 198 Entered New Map 52 | . . 52 Time Decay 200 | . 110 90 Lost Part 60 | . 10 50 Lost Ally 6 | . . 6 Squads Dispatched 1 | . 1 . Investigation 1 | . 1 . Extermination . | . . . Reinforcement . | . . . Assault . | . . . Garrison . | . . . Intercept . | . . . Searches Triggered . | . . . Construction Impeded . | . . . Haulers Reinforced . | . . . Active Scanning Responses . | . . . Cargo Convoy Interrupts . | . . . Stealth | -11 -10 -10 --------- Run | Yrd Mat Min Distress Signals 1 | . 1 . Communications Jammed . | . . . Distress Signals . | . . . Times Spotted 35 | . 10 25 Peak Tracking Total 19 | . 3 19 Tactical Retreats 2 | . . 2 Traps | -11 -10 -10 ------- Run | Yrd Mat Min Traps Triggered . | . . . Indirectly . | . . . Trap Hack Attempts . | . . . Triggered . | . . . Disarmed . | . . . Reprogrammed . | . . . Reused . | . . . Traps Extracted . | . . . Installed . | . . . Triggered . | . . . Machines | -11 -10 -10 ---------- Run | Yrd Mat Min Machines Disabled . | . . . Max in Single Turn . | . . . Machines Repaired . | . . . Machines Dismantled . | . . . Machines Sabotaged . | . . . Overloaded Fab Kills . | . . . Hacking | -11 -10 -10 --------- Run | Yrd Mat Min Machines Accessed 2 | . 1 1 Terminals 1 | . 1 . Fabricators . | . . . Repair Stations . | . . . Recycling Units . | . . . Scanalyzers . | . . . Garrison Access . | . . . Total Hacks 5 | . 4 1 Successful 2 | . 1 1 Failed 3 | . 3 . Catastrophic 1 | . 1 . Database Lockouts . | . . . Manual . | . . . Terminals 4 | . 4 . Fabricators . | . . . Repair Stations . | . . . Recycling Units . | . . . Scanalyzers . | . . . Garrison Access . | . . . Terminal Hacks 2 | . 1 1 Open Door 1 | . . 1 Branch Access Points 1 | . 1 . Fabricator Hacks . | . . . Repair Station Hacks . | . . . Recycling Unit Hacks . | . . . Scanalyzer . | . . . Garrison Access Hacks . | . . . Unauthorized Hacks . | . . . Terminals . | . . . Fabricators . | . . . Repair Stations . | . . . Recycling Units . | . . . Scanalyzers . | . . . Garrison Access . | . . . Data Cores Recovered . | . . . Used . | . . . Hacking Detections 1 | . 1 . Full Trace Events 1 | . 1 . Feedback Events . | . . . Feedback Blocked . | . . . Robot Schematics Acquired . | . . . Robots Built . | . . . Authchips . | . . . Time . | . . . Total Robot Build Rating . | . . . Part Schematics Acquired . | . . . Parts Built . | . . . Authchips . | . . . Time . | . . . Total Part Build Rating . | . . . Part Studies Acquired . | . . . Parts Repaired . | . . . Time . | . . . Parts Recycled . | . . . Recycled Matter . | . . . Retrieved Matter . | . . . Retrieved Components . | . . . Parts Scanalyzed . | . . . Part Schematics Acquired . | . . . Parts Damaged . | . . . Bothacking | -11 -10 -10 ------------ Run | Yrd Mat Min Used RIF Installer . | . . . Robots Hacked . | . . . Non-combat . | . . . Combat . | . . . Robot Hacks Applied . | . . . Relay Couplers Released . | . . . Fabnet Peak Effective % . | . . . Robots Rewired . | . . . Allies Hacked . | . . . Hacks Repelled . | . . . Allies | -11 -10 -10 -------- Run | Yrd Mat Min Total Allies . | . . . Largest Group . | . . . Highest-Rated Group . | . . . Highest-Rated Ally . | . . . Total Orders . | . . . Ally Attacks 4 | . . 4 Total Damage 10 | . . 10 Kills . | . . . Allies Corrupted . | . . . Allies Melted . | . . . Intel | -11 -10 -10 ------- Run | Yrd Mat Min Active Infowar (turns) . | . . . Robot Analysis Total . | . . . Derelict Logs Recovered 2 | . . 2 Drone Launches 8 | . . 8 Drone Recoveries 2 | . . 2 Exploration | -11 -10 -10 ------------- Run | Yrd Mat Min Turns Passed 473 | 4 255 214 Spaces Moved 425 | 4 147 274 Core . | . . . Treads . | . . . Legs 111 | 4 107 . Wheels . | . . . Hover 314 | . 40 274 Flight . | . . . Fastest Speed 56 | 120 56 56 Average Speed 73 | 120 105 56 Slowest Speed 130 | 120 130 60 Overloaded Moves . | . . . Propulsion Burnouts . | . . . Robots Hopped . | . . . Potential Cave-ins 7 | . . 7 Cave-ins Triggered . | . . . Exploration Rate (%) 27 | 2 22 58 Regions Visited 2 Branch Regions 1 Pre-discovered Areas . | . . . Known Exits Taken 1 | . 1 . Unknown Exits Taken 1 | 1 . . Scrap Searched 1 | . . 1 Spaces Dug . | . . . Terrain Destroyed 101 | . 22 79 Melee . | . . . Projectile . | . . . AOE 101 | . 22 79 Terrain Rammed . | . . . Walls Destroyed . | . . . Machines Disabled . | . . . Actions | -11 -10 -10 --------- Run | Yrd Mat Min Total 518 | 3 203 312 Wait 13 | . . 13 Move 423 | 3 146 274 Hop . | . . . Pick Up 11 | . 11 . Fast Attach 3 | . 1 2 Attach 6 | . 2 4 Detach 3 | . 2 1 Swap 8 | . 7 1 Drop 11 | . 11 . Fire 40 | . 23 17 Melee . | . . . Ram . | . . . Kick . | . . . Crush . | . . . Escape Stasis . | . . . Rewire . | . . . Trap . | . . . Miscellaneous . | . . . Route ------- -11/Scrapyard -10/Materials (discovered 2 exits: *Min x2) -10/Mines History --------- Turn | Location | Event 1 | -11/Scrapyard | Discovered new exit (range 1) 5 | -11/Scrapyard | Entered Materials 64 | -10/Materials | Identified exit to Mines 260 | -10/Materials | Entered Mines 304 | -10/Mines | Met a Derelict bent on vengeance 312 | -10/Mines | Build established: Mutant 323 | -10/Mines | Assembled infested the area 351 | -10/Mines | Core integrity fell below 50% 384 | -10/Mines | Destroyed 19 combat bots 396 | -10/Mines | Lost 3 parts (1p1n1w) 401 | -10/Mines | Core integrity fell below 20% 413 | -10/Mines | Learned 8 Materials zone layouts 426 | -10/Mines | Found the Drone Emporium 428 | -10/Mines | Found Prototype Device 428 | -10/Mines | Identified Splice Drone Bay 473 | -10/Mines | Lost 6 allies 474 | -10/Mines | Destroyed by D-53 Grenadier with Mini Grenade Launcher Last Messages --------------- 00437_ Splice Drone released from Splice Drone Bay. 00441_ The unstable cave ceiling collapses. 00441_ Splice Drone retrieved by Splice Drone Bay (repair cost: 9). 00441_ Splice Drone injecting D-53 Grenadier... Shutting down primary systems. 00442_ The unstable cave ceiling collapses. 00442_ D-53 Grenadier springs to life. 00442_ Splice Drone destroyed. 00443_ Splice Drone released from Splice Drone Bay. 00444_ Sml. Storage Unit destroyed. 00444_ Machine disabled. 00444_ Splice Drone injecting D-53 Grenadier... Initiating full reboot, ETC: 25. 00445_ Acquired EM Shotgun. 00446_ Splice Drone retrieved by Splice Drone Bay (repair cost: 2). 00448_ RUXTID2QMUE LHEB JFNYU:UMBOB=KR3U2Z|> 00459_ D-53 Grenadier destroyed. 00461_ Acquired 39 matter. 00472_ Splice Drone released from Splice Drone Bay. 00474_ The unstable cave ceiling collapses. Map ----- +----------------------------------------------------+ | ## #???????????########## #? | | ##????????# #? | | ##????????????########## ####? | | ##??????????????????????## #??? | | #???????????????????????## #??? | | #??????????????????????# ##??? | | ????????????????????# #???? | | # ??????????????????# ##???? | | ### #### # ?????????????????# ##???? | | ??####??? #??#????????????????# # ????? | | ??????????#??????????????????? #????? | | ????????????????????????????#### ###??? | | ????????????????????????????# #??? | | ????????????????????????????# ##?? | | ???????????????????????????## #?? | | ???????????????????????????# #?? | | ???????????????????????????# #??? | | ???????????????????????????# #??? | | ???????????????????????##### d #??? | | ?????????????????????#### # #??? | | ????????????????????## #??? | | ????????????????????# #??? | | ?????????????????????# n #??? | | ????????????????????## #??? | | ????????????????????# #??? | | ????????????????????## @ #??? | | ?????????????????????## #??? | | ??????????????????????### #??? | | ????????????????????????#############??? | | ???????????????????????????????????????? | | | | | | | | | | | | | | | | | | | | | | | | | | | | | | | | | | | | | | | | | +----------------------------------------------------+ Best States ------------- Heat Dissipation 39 Energy Generation 10 Energy Capacity 125 Matter Stores 300 Matter Capacity 300 Sight Range 16 Terrain Scan Density 10 Evasion (%) 55 Item Schematics ----------------- None Robot Schematics ------------------ None Fabricated ------------ Nothing Repaired ---------- Nothing Studied --------- None Alien Tech Used ----------------- None Achievements -------------- None Challenges ------------ None Game ------ Seed SkeletonCarbideDissipator Manual? 0 Play Time 00:06:48 Cumulative 1281.4 hours Start 2026.03.24 @ 16:04:51 End 2026.03.24 @ 16:09:23 Sessions 1 Manual Loads 0 Difficulty Rogue Special Mode None Game No. 1574 Rogue 1290 Adventurer 124 Explorer 160 Win Type - Total 63 Types 49/0/8/4/1/0/0/1/0/0 Lore% 93 Gallery% 83 Achievement% 69 Wizard Run 0 Options --------- Layout 0 ASCII 0 Keyboard 1 Movement Numpad Keybinds 0 Fullscreen 2 Font 18/X11 Map View 76x50 Zoom Use 0% Tactical HUD 1 Map Filters NONE Filters NONE Steam 1 RUN: b8a2869d-bd4b-488f-9236-64650d2615fc